[Event "*** SCC Grand Prix: Titled Tuesday Blitz"]
[Site "Chess.com"]
[Date "2020.08.11"]
[Round "5"]
[White "MestreSoares"]
[Black "MarceloPlaya"]
[Result "0-1"]
[WhiteElo "2154"]
[BlackElo "2338"]
[TimeControl "180+1"]
[EndTime "10:54:02 PDT"]
[Termination "MarceloPlaya won by resignation"]

1. Nf3 {[%clk 0:03:00.9]} 1... e6 {[%clk 0:02:59.8]} 2. b3 {[%clk 0:03:00.7]}
2... d5 {[%clk 0:02:59.8]} 3. Bb2 {[%clk 0:03:01.2]} 3... Nf6 {[%clk 0:03:00.2]}
4. e3 {[%clk 0:03:01.7]} 4... Be7 {[%clk 0:03:00.1]} 5. Be2 {[%clk 0:03:02.3]}
5... O-O {[%clk 0:03:00.1]} 6. O-O {[%clk 0:03:02.8]} 6... c5 {[%clk 0:03:00.1]}
7. d4 {[%clk 0:03:03]} 7... Nc6 {[%clk 0:02:59.7]} 8. c4 {[%clk 0:03:01.3]} 8...
b6 {[%clk 0:02:57.6]} 9. dxc5 {[%clk 0:03:00.2]} 9... Bxc5 {[%clk 0:02:55.1]}
10. cxd5 {[%clk 0:03:00.1]} 10... Nxd5 {[%clk 0:02:51.5]} 11. Nc3 {[%clk
0:03:00.2]} 11... Nxc3 {[%clk 0:02:47.4]} 12. Bxc3 {[%clk 0:02:59.6]} 12... Bb7
{[%clk 0:02:46.1]} 13. Qxd8 {[%clk 0:02:58.3]} 13... Rfxd8 {[%clk 0:02:44.3]}
14. Rfd1 {[%clk 0:02:58.8]} 14... Rac8 {[%clk 0:02:42.7]} 15. Rxd8+ {[%clk
0:02:46.2]} 15... Rxd8 {[%clk 0:02:34.3]} 16. Rd1 {[%clk 0:02:45.5]} 16... Rxd1+
{[%clk 0:02:33.1]} 17. Bxd1 {[%clk 0:02:44.8]} 17... Nb4 {[%clk 0:02:33.4]} 18.
a3 {[%clk 0:02:35.1]} 18... Nd5 {[%clk 0:02:32.3]} 19. Bb2 {[%clk 0:02:35]}
19... f6 {[%clk 0:02:32.3]} 20. b4 {[%clk 0:02:34.5]} 20... Bd6 {[%clk
0:02:28.1]} 21. h3 {[%clk 0:02:33.2]} 21... e5 {[%clk 0:02:22.3]} 22. Nd2 {[%clk
0:02:32.2]} 22... Kf8 {[%clk 0:02:08.6]} 23. Kf1 {[%clk 0:02:30.7]} 23... Nc7
{[%clk 0:02:01.4]} 24. Bf3 {[%clk 0:02:30]} 24... Bxf3 {[%clk 0:01:57.1]} 25.
Nxf3 {[%clk 0:02:27]} 25... Ke7 {[%clk 0:01:55.2]} 26. Ke2 {[%clk 0:02:26.2]}
26... Ke6 {[%clk 0:01:49.4]} 27. Kd3 {[%clk 0:02:19.6]} 27... Kd5 {[%clk
0:01:48.9]} 28. Nd2 {[%clk 0:02:14.3]} 28... f5 {[%clk 0:01:33.5]} 29. f3 {[%clk
0:02:13.7]} 29... b5 {[%clk 0:01:24.1]} 30. e4+ {[%clk 0:02:10.1]} 30... Ke6
{[%clk 0:01:17.4]} 31. exf5+ {[%clk 0:02:07.7]} 31... Kxf5 {[%clk 0:01:17.4]}
32. Ne4 {[%clk 0:02:07.2]} 32... Be7 {[%clk 0:01:17]} 33. Bc1 {[%clk 0:02:06]}
33... Nd5 {[%clk 0:01:15.2]} 34. g4+ {[%clk 0:02:01.9]} 34... Ke6 {[%clk
0:01:12]} 35. Bd2 {[%clk 0:01:58.3]} 35... g6 {[%clk 0:01:08.9]} 36. Kc2 {[%clk
0:01:52.8]} 36... h5 {[%clk 0:01:07.1]} 37. Kd3 {[%clk 0:01:49.5]} 37... hxg4
{[%clk 0:01:06.4]} 38. hxg4 {[%clk 0:01:48]} 38... Nc7 {[%clk 0:00:56.8]} 39.
Nc3 {[%clk 0:01:37.9]} 39... Bf8 {[%clk 0:00:49.2]} 40. Ke4 {[%clk 0:01:34.6]}
40... a6 {[%clk 0:00:47.2]} 41. Be3 {[%clk 0:01:32.4]} 41... Ne8 {[%clk
0:00:46.3]} 42. Nd5 {[%clk 0:01:28.7]} 42... Nd6+ {[%clk 0:00:44.3]} 43. Kd3
{[%clk 0:01:18.5]} 43... Kxd5 {[%clk 0:00:44.3]} 0-1

[Event "*** SCC Grand Prix: Titled Tuesday Blitz"]
[Site "Chess.com"]
[Date "2020.08.11"]
[Round "5"]
[White "Beca95"]
[Black "abykhovsky"]
[Result "0-1"]
[WhiteElo "2880"]
[BlackElo "2759"]
[TimeControl "180+1"]
[EndTime "10:54:04 PDT"]
[Termination "abykhovsky won by resignation"]

1. c4 {[%clk 0:03:00.9]} 1... e5 {[%clk 0:02:57.6]} 2. Nc3 {[%clk 0:03:00.9]}
2... Nf6 {[%clk 0:02:57.1]} 3. e3 {[%clk 0:03:01.5]} 3... Bb4 {[%clk 0:02:56.2]}
4. Nge2 {[%clk 0:03:00.8]} 4... O-O {[%clk 0:02:56.1]} 5. a3 {[%clk 0:03:01]}
5... Be7 {[%clk 0:02:55.9]} 6. d4 {[%clk 0:03:00.5]} 6... d6 {[%clk 0:02:55.4]}
7. h3 {[%clk 0:02:59.7]} 7... Re8 {[%clk 0:02:34.9]} 8. g4 {[%clk 0:02:59.5]}
8... Bf8 {[%clk 0:02:32.2]} 9. Bg2 {[%clk 0:02:59]} 9... c6 {[%clk 0:02:31.3]}
10. g5 {[%clk 0:02:56.9]} 10... Nfd7 {[%clk 0:02:30.1]} 11. h4 {[%clk
0:02:56.8]} 11... Nb6 {[%clk 0:02:29.6]} 12. b3 {[%clk 0:02:54.8]} 12... a5
{[%clk 0:02:29.9]} 13. Qd3 {[%clk 0:02:42.5]} 13... N8d7 {[%clk 0:02:13.2]} 14.
f4 {[%clk 0:02:25.2]} 14... exd4 {[%clk 0:02:09.4]} 15. exd4 {[%clk 0:02:24.8]}
15... a4 {[%clk 0:02:09.2]} 16. b4 {[%clk 0:02:23.9]} 16... d5 {[%clk
0:02:09.7]} 17. c5 {[%clk 0:02:12.7]} 17... Nc4 {[%clk 0:02:09.8]} 18. Kf2
{[%clk 0:02:11.3]} 18... b6 {[%clk 0:02:09.2]} 19. b5 {[%clk 0:01:53.7]} 19...
bxc5 {[%clk 0:01:58.9]} 20. bxc6 {[%clk 0:01:53.1]} 20... Ndb6 {[%clk
0:01:59.3]} 21. Nxd5 {[%clk 0:01:52.2]} 21... Nxd5 {[%clk 0:01:46.5]} 22. Qxc4
{[%clk 0:01:48.8]} 22... Nb6 {[%clk 0:01:43.6]} 23. c7 {[%clk 0:01:23.4]} 23...
Qxc7 {[%clk 0:01:36.9]} 24. Qc2 {[%clk 0:01:22.9]} 24... Ba6 {[%clk 0:01:30.6]}
25. Ng3 {[%clk 0:01:21.5]} 25... Rad8 {[%clk 0:01:25.5]} 26. Rd1 {[%clk
0:01:20.9]} 26... Bc4 {[%clk 0:01:22.1]} 27. Rb1 {[%clk 0:01:11.9]} 27... cxd4
{[%clk 0:01:17.9]} 28. Be4 {[%clk 0:00:57]} 28... d3 {[%clk 0:01:09.3]} 29. Bxd3
{[%clk 0:00:57.2]} 29... Qc5+ {[%clk 0:01:08]} 30. Kg2 {[%clk 0:00:55.8]} 30...
Bxd3 {[%clk 0:01:08.2]} 31. Qxc5 {[%clk 0:00:45.6]} 31... Bxc5 {[%clk
0:01:09.1]} 32. Rb2 {[%clk 0:00:42]} 32... Be4+ {[%clk 0:01:01]} 33. Nxe4 {[%clk
0:00:41.8]} 33... Rxd1 {[%clk 0:01:01.2]} 34. Nxc5 {[%clk 0:00:41.5]} 34... Rxc1
{[%clk 0:01:01.6]} 35. Nd3 {[%clk 0:00:41.6]} 35... Rc3 {[%clk 0:01:00.4]} 36.
Ne5 {[%clk 0:00:41.3]} 36... Nc4 {[%clk 0:00:59.1]} 0-1

[Event "*** SCC Grand Prix: Titled Tuesday Blitz"]
[Site "Chess.com"]
[Date "2020.08.11"]
[Round "5"]
[White "Kavyev_Ruslan"]
[Black "slavenok"]
[Result "0-1"]
[WhiteElo "2448"]
[BlackElo "2717"]
[TimeControl "180+1"]
[EndTime "10:54:05 PDT"]
[Termination "slavenok won by resignation"]

1. d4 {[%clk 0:03:00.7]} 1... d5 {[%clk 0:02:59.7]} 2. c4 {[%clk 0:03:01]} 2...
e6 {[%clk 0:02:58.9]} 3. g3 {[%clk 0:03:01.1]} 3... Nf6 {[%clk 0:02:59.2]} 4.
Nf3 {[%clk 0:03:01.3]} 4... Bb4+ {[%clk 0:02:59.7]} 5. Bd2 {[%clk 0:03:00.6]}
5... Bxd2+ {[%clk 0:02:59.6]} 6. Nbxd2 {[%clk 0:03:00.4]} 6... O-O {[%clk
0:03:00.5]} 7. Bg2 {[%clk 0:03:00.2]} 7... b6 {[%clk 0:03:00.2]} 8. cxd5 {[%clk
0:02:59.9]} 8... exd5 {[%clk 0:03:00.1]} 9. O-O {[%clk 0:02:59.6]} 9... Bb7
{[%clk 0:03:00.4]} 10. Nb1 {[%clk 0:02:59.7]} 10... c5 {[%clk 0:02:58.3]} 11.
dxc5 {[%clk 0:02:58.1]} 11... bxc5 {[%clk 0:02:57.1]} 12. Nc3 {[%clk 0:02:58.8]}
12... d4 {[%clk 0:02:55.6]} 13. Qb3 {[%clk 0:02:52.3]} 13... Qb6 {[%clk
0:02:48.9]} 14. Na4 {[%clk 0:02:52.4]} 14... Qxb3 {[%clk 0:02:43.1]} 15. axb3
{[%clk 0:02:53.3]} 15... Nbd7 {[%clk 0:02:43]} 16. Rfc1 {[%clk 0:02:43.7]} 16...
Rfc8 {[%clk 0:02:41.6]} 17. Ne1 {[%clk 0:02:42.9]} 17... Bxg2 {[%clk 0:02:40]}
18. Kxg2 {[%clk 0:02:43.8]} 18... Rab8 {[%clk 0:02:34.6]} 19. Ra3 {[%clk
0:02:44]} 19... Ne4 {[%clk 0:02:30.9]} 20. Nd3 {[%clk 0:02:43.4]} 20... Rb5
{[%clk 0:02:27.4]} 21. f3 {[%clk 0:02:29.3]} 21... Nef6 {[%clk 0:02:24.4]} 22.
Naxc5 {[%clk 0:02:25.1]} 22... Nxc5 {[%clk 0:02:18.2]} 23. b4 {[%clk 0:02:25.5]}
23... Nd5 {[%clk 0:02:12.3]} 24. Rxc5 {[%clk 0:02:14.8]} 24... Ne3+ {[%clk
0:02:06.6]} 25. Kf2 {[%clk 0:02:12.4]} 25... Rcxc5 {[%clk 0:02:05.5]} 26. bxc5
{[%clk 0:02:12.6]} 26... a5 {[%clk 0:01:54.2]} 27. c6 {[%clk 0:02:09.4]} 27...
Rb8 {[%clk 0:01:18.5]} 28. Rxa5 {[%clk 0:02:05.4]} 28... Kf8 {[%clk 0:01:18.1]}
29. b4 {[%clk 0:02:04.6]} 29... Ke7 {[%clk 0:01:17]} 30. Ra7+ {[%clk 0:01:27.6]}
30... Kd6 {[%clk 0:01:08.9]} 31. Rxf7 {[%clk 0:01:25.8]} 31... Kxc6 {[%clk
0:01:06.3]} 32. Rxg7 {[%clk 0:01:25.2]} 32... Nd1+ {[%clk 0:01:06.2]} 33. Kg2
{[%clk 0:01:23.5]} 33... Ne3+ {[%clk 0:01:06.1]} 34. Kh3 {[%clk 0:01:23.4]}
34... Nd5 {[%clk 0:01:03.8]} 35. Rxh7 {[%clk 0:01:20.4]} 35... Nxb4 {[%clk
0:00:59.9]} 36. Nxb4+ {[%clk 0:01:19.6]} 36... Rxb4 {[%clk 0:01:00]} 37. Kg4
{[%clk 0:01:12.4]} 37... d3+ {[%clk 0:00:55.2]} 38. f4 {[%clk 0:01:09.4]} 38...
d2 {[%clk 0:00:51.6]} 39. Rh6+ {[%clk 0:01:09.4]} 39... Kc5 {[%clk 0:00:48.9]}
40. Rh5+ {[%clk 0:01:09.8]} 40... Kc4 {[%clk 0:00:47.8]} 0-1

[Event "*** SCC Grand Prix: Titled Tuesday Blitz"]
[Site "Chess.com"]
[Date "2020.08.11"]
[Round "5"]
[White "ValeriyGrinev"]
[Black "Tactictic"]
[Result "1-0"]
[WhiteElo "2638"]
[BlackElo "2371"]
[TimeControl "180+1"]
[EndTime "10:54:07 PDT"]
[Termination "ValeriyGrinev won by resignation"]

1. d4 {[%clk 0:03:00.9]} 1... Nf6 {[%clk 0:02:59.9]} 2. c4 {[%clk 0:02:58.8]}
2... e6 {[%clk 0:02:59.8]} 3. Nc3 {[%clk 0:02:59.2]} 3... d5 {[%clk 0:03:00.2]}
4. cxd5 {[%clk 0:02:58.3]} 4... exd5 {[%clk 0:03:01.1]} 5. Bg5 {[%clk 0:02:58]}
5... Be7 {[%clk 0:02:59.1]} 6. e3 {[%clk 0:02:58.5]} 6... c6 {[%clk 0:02:58.5]}
7. Bd3 {[%clk 0:02:58.2]} 7... Nbd7 {[%clk 0:02:57]} 8. Qc2 {[%clk 0:02:58]}
8... h6 {[%clk 0:02:57.3]} 9. Bh4 {[%clk 0:02:57.8]} 9... Nh5 {[%clk 0:02:57.6]}
10. Bxe7 {[%clk 0:02:58.4]} 10... Qxe7 {[%clk 0:02:58.2]} 11. Nge2 {[%clk
0:02:59.3]} 11... Nb6 {[%clk 0:02:55.6]} 12. O-O {[%clk 0:02:57.9]} 12... O-O
{[%clk 0:02:53.7]} 13. Rab1 {[%clk 0:02:57.7]} 13... a5 {[%clk 0:02:52.2]} 14.
Rbe1 {[%clk 0:02:58.2]} 14... Bd7 {[%clk 0:02:45.8]} 15. Nc1 {[%clk 0:02:57.8]}
15... f5 {[%clk 0:02:38.9]} 16. Nb3 {[%clk 0:02:54.8]} 16... Qg5 {[%clk
0:02:00.3]} 17. f4 {[%clk 0:02:50.7]} 17... Qg6 {[%clk 0:01:47.7]} 18. Nc5
{[%clk 0:02:51.6]} 18... Bc8 {[%clk 0:01:46.4]} 19. Nb1 {[%clk 0:02:39.1]} 19...
Nf6 {[%clk 0:01:45.2]} 20. Nd2 {[%clk 0:02:38.2]} 20... Ne4 {[%clk 0:01:44.7]}
21. Nf3 {[%clk 0:02:38.2]} 21... Nd7 {[%clk 0:01:38]} 22. Nxd7 {[%clk 0:02:37]}
22... Bxd7 {[%clk 0:01:38.9]} 23. Ne5 {[%clk 0:02:37.3]} 23... Qd6 {[%clk
0:01:38.9]} 24. Bxe4 {[%clk 0:02:37.2]} 24... fxe4 {[%clk 0:01:37.4]} 25. Qc5
{[%clk 0:02:34.7]} 25... Qxc5 {[%clk 0:01:33.3]} 26. dxc5 {[%clk 0:02:35.6]}
26... Be6 {[%clk 0:01:25.3]} 27. a3 {[%clk 0:02:28.3]} 27... a4 {[%clk
0:01:22.2]} 28. Rd1 {[%clk 0:02:28.2]} 28... Ra5 {[%clk 0:01:20.6]} 29. Rc1
{[%clk 0:02:28]} 29... Rb5 {[%clk 0:01:19.3]} 30. Rf2 {[%clk 0:02:26.4]} 30...
Ra8 {[%clk 0:01:11.5]} 31. Rd2 {[%clk 0:02:25]} 31... Raa5 {[%clk 0:01:06.2]}
32. Rd4 {[%clk 0:02:23.2]} 32... Rxb2 {[%clk 0:00:56.8]} 33. Rb4 {[%clk
0:02:07.7]} 33... Rxb4 {[%clk 0:00:21.4]} 34. axb4 {[%clk 0:02:08.6]} 34... Rb5
{[%clk 0:00:22.1]} 35. Rb1 {[%clk 0:02:08.9]} 35... a3 {[%clk 0:00:13.2]} 36.
Ra1 {[%clk 0:02:08.4]} 36... Rxb4 {[%clk 0:00:13.5]} 37. Rxa3 {[%clk 0:02:08.6]}
37... Rb5 {[%clk 0:00:13.3]} 38. Ra8+ {[%clk 0:02:06.1]} 38... Kh7 {[%clk
0:00:12.9]} 39. Re8 {[%clk 0:02:06.6]} 39... Bg8 {[%clk 0:00:11.5]} 40. Re7
{[%clk 0:02:05.3]} 40... Rxc5 {[%clk 0:00:11.7]} 41. Rxb7 {[%clk 0:02:02.9]}
41... Rc2 {[%clk 0:00:11.8]} 42. f5 {[%clk 0:02:00]} 42... c5 {[%clk 0:00:11.3]}
43. f6 {[%clk 0:02:00.3]} 43... Rc1+ {[%clk 0:00:07.6]} 44. Kf2 {[%clk 0:02:00]}
44... Kh8 {[%clk 0:00:02.6]} 45. Rxg7 {[%clk 0:01:57.5]} 1-0

[Event "*** SCC Grand Prix: Titled Tuesday Blitz"]
[Site "Chess.com"]
[Date "2020.08.11"]
[Round "5"]
[White "mr65"]
[Black "MNyuyu"]
[Result "0-1"]
[WhiteElo "2140"]
[BlackElo "2330"]
[TimeControl "180+1"]
[EndTime "10:54:08 PDT"]
[Termination "MNyuyu won by resignation"]

1. e4 {[%clk 0:03:00.9]} 1... d5 {[%clk 0:02:59.7]} 2. exd5 {[%clk 0:02:59.9]}
2... Qxd5 {[%clk 0:02:59.6]} 3. Nc3 {[%clk 0:02:59]} 3... Qd8 {[%clk 0:02:59.2]}
4. Nf3 {[%clk 0:02:58.6]} 4... Bg4 {[%clk 0:02:58.1]} 5. h3 {[%clk 0:02:57.3]}
5... Bh5 {[%clk 0:02:57.4]} 6. Bc4 {[%clk 0:02:57]} 6... e6 {[%clk 0:02:57]} 7.
O-O {[%clk 0:02:51.3]} 7... c6 {[%clk 0:02:55.1]} 8. Bb3 {[%clk 0:02:46.3]} 8...
Nd7 {[%clk 0:02:54.4]} 9. Ne4 {[%clk 0:02:45.8]} 9... Ngf6 {[%clk 0:02:53.1]}
10. Ng3 {[%clk 0:02:45]} 10... Bg6 {[%clk 0:02:52.7]} 11. d4 {[%clk 0:02:41.8]}
11... Bd6 {[%clk 0:02:51.5]} 12. c3 {[%clk 0:02:40.9]} 12... Qc7 {[%clk
0:02:49.9]} 13. Ne2 {[%clk 0:02:33.9]} 13... O-O {[%clk 0:02:45.3]} 14. Kh1
{[%clk 0:02:29.3]} 14... h6 {[%clk 0:02:41.4]} 15. Ne1 {[%clk 0:02:18.4]} 15...
Rfe8 {[%clk 0:02:36.4]} 16. Nd3 {[%clk 0:02:17.5]} 16... Rad8 {[%clk 0:02:32.5]}
17. Bf4 {[%clk 0:02:09]} 17... Nd5 {[%clk 0:02:30.5]} 18. Bxd6 {[%clk
0:02:05.7]} 18... Qxd6 {[%clk 0:02:30.2]} 19. Qd2 {[%clk 0:02:02]} 19... Bxd3
{[%clk 0:02:22.5]} 20. Qxd3 {[%clk 0:02:00.1]} 20... N7f6 {[%clk 0:02:22.6]} 21.
Rad1 {[%clk 0:01:54.7]} 21... Nf4 {[%clk 0:02:19]} 22. Nxf4 {[%clk 0:01:52.5]}
22... Qxf4 {[%clk 0:02:18.5]} 23. Qe3 {[%clk 0:01:47.7]} 23... Qh4 {[%clk
0:02:14.1]} 24. Qf3 {[%clk 0:01:27.7]} 24... e5 {[%clk 0:02:06.9]} 25. dxe5
{[%clk 0:01:25.9]} 25... Rxd1 {[%clk 0:02:02.3]} 26. Rxd1 {[%clk 0:01:24.7]}
26... Rxe5 {[%clk 0:01:58.2]} 27. Rd8+ {[%clk 0:01:22.7]} 27... Kh7 {[%clk
0:01:57]} 28. Bxf7 {[%clk 0:01:13.3]} 28... Re1+ {[%clk 0:01:56]} 29. Kh2 {[%clk
0:01:08.9]} 29... Ng4+ {[%clk 0:01:55.7]} 30. Qxg4 {[%clk 0:01:07.1]} 30... Qxd8
{[%clk 0:01:55.8]} 31. Bg6+ {[%clk 0:00:57.5]} 31... Kh8 {[%clk 0:01:52.1]} 32.
Bc2 {[%clk 0:00:52.4]} 32... Qd6+ {[%clk 0:01:44.8]} 33. g3 {[%clk 0:00:49.3]}
33... Qe6 {[%clk 0:01:43.7]} 34. Qf3 {[%clk 0:00:42.7]} 34... Qf6 {[%clk
0:01:26.2]} 35. Qxf6 {[%clk 0:00:30.2]} 35... gxf6 {[%clk 0:01:25.6]} 36. Bf5
{[%clk 0:00:26.4]} 36... Re2 {[%clk 0:01:24.4]} 37. b3 {[%clk 0:00:24.7]} 37...
Rxf2+ {[%clk 0:01:23.7]} 0-1

[Event "*** SCC Grand Prix: Titled Tuesday Blitz"]
[Site "Chess.com"]
[Date "2020.08.11"]
[Round "5"]
[White "Andrakhanova"]
[Black "TimKett"]
[Result "0-1"]
[WhiteElo "1687"]
[BlackElo "2201"]
[TimeControl "180+1"]
[EndTime "10:54:14 PDT"]
[Termination "TimKett won by resignation"]

1. c4 {[%clk 0:03:00.9]} 1... e6 {[%clk 0:02:55.6]} 2. g3 {[%clk 0:03:00.3]}
2... d5 {[%clk 0:02:55.3]} 3. Bg2 {[%clk 0:03:00.1]} 3... c5 {[%clk 0:02:54.3]}
4. cxd5 {[%clk 0:02:57.7]} 4... exd5 {[%clk 0:02:53.4]} 5. d4 {[%clk 0:02:57.8]}
5... cxd4 {[%clk 0:02:45]} 6. Qxd4 {[%clk 0:02:58.7]} 6... Nf6 {[%clk
0:02:43.1]} 7. Nf3 {[%clk 0:02:56.4]} 7... Nc6 {[%clk 0:02:42.6]} 8. Qa4 {[%clk
0:02:50.2]} 8... Bc5 {[%clk 0:02:38.5]} 9. O-O {[%clk 0:02:47.8]} 9... O-O
{[%clk 0:02:38]} 10. Nc3 {[%clk 0:02:39.1]} 10... d4 {[%clk 0:02:37.7]} 11. Nb5
{[%clk 0:02:27.5]} 11... a6 {[%clk 0:02:24.5]} 12. Na3 {[%clk 0:02:25.2]} 12...
Bg4 {[%clk 0:02:16]} 13. Bf4 {[%clk 0:02:16.5]} 13... Nd5 {[%clk 0:02:03.9]} 14.
Bg5 {[%clk 0:02:11.9]} 14... Qd7 {[%clk 0:01:58.3]} 15. Rac1 {[%clk 0:02:09.3]}
15... Ba7 {[%clk 0:01:54.8]} 16. Rfd1 {[%clk 0:02:02]} 16... Rfe8 {[%clk
0:01:49]} 17. Kf1 {[%clk 0:01:25.5]} 17... h6 {[%clk 0:01:47.7]} 18. Bd2 {[%clk
0:01:23.9]} 18... Bh3 {[%clk 0:01:43.4]} 19. Ng1 {[%clk 0:01:12.3]} 19... Bxg2+
{[%clk 0:01:41.3]} 20. Kxg2 {[%clk 0:01:13.2]} 20... Qg4 {[%clk 0:01:29.9]} 21.
f3 {[%clk 0:00:50.3]} 21... Qe6 {[%clk 0:01:26.6]} 22. Nc2 {[%clk 0:00:36.6]}
22... d3 {[%clk 0:00:59.6]} 23. e4 {[%clk 0:00:20]} 23... dxc2 {[%clk
0:00:56.3]} 24. exd5 {[%clk 0:00:19.4]} 24... cxd1=Q {[%clk 0:00:51]} 25. Rxd1
{[%clk 0:00:17.8]} 0-1

[Event "*** SCC Grand Prix: Titled Tuesday Blitz"]
[Site "Chess.com"]
[Date "2020.08.11"]
[Round "5"]
[White "youngKID"]
[Black "tigra"]
[Result "1-0"]
[WhiteElo "2759"]
[BlackElo "2872"]
[TimeControl "180+1"]
[EndTime "10:54:16 PDT"]
[Termination "youngKID won by resignation"]

1. e4 {[%clk 0:03:00.9]} 1... c5 {[%clk 0:02:57]} 2. Nf3 {[%clk 0:03:00.3]} 2...
d6 {[%clk 0:02:56.7]} 3. d4 {[%clk 0:02:58.6]} 3... cxd4 {[%clk 0:02:57.6]} 4.
Nxd4 {[%clk 0:02:58.7]} 4... Nf6 {[%clk 0:02:57.5]} 5. Nc3 {[%clk 0:02:59.3]}
5... a6 {[%clk 0:02:57.5]} 6. Be2 {[%clk 0:02:59.4]} 6... g6 {[%clk 0:02:54.3]}
7. Be3 {[%clk 0:02:53]} 7... Bg7 {[%clk 0:02:54.4]} 8. Qd2 {[%clk 0:02:53.4]}
8... Nc6 {[%clk 0:02:53]} 9. O-O-O {[%clk 0:02:51.9]} 9... O-O {[%clk
0:02:51.4]} 10. Kb1 {[%clk 0:02:47.8]} 10... Bd7 {[%clk 0:02:50.4]} 11. h4
{[%clk 0:02:47.3]} 11... h5 {[%clk 0:02:49.6]} 12. f3 {[%clk 0:02:45.8]} 12...
Rc8 {[%clk 0:02:40.7]} 13. Nxc6 {[%clk 0:02:23.8]} 13... Rxc6 {[%clk 0:02:38.4]}
14. Nd5 {[%clk 0:02:16]} 14... b5 {[%clk 0:02:28.6]} 15. g4 {[%clk 0:02:11.2]}
15... hxg4 {[%clk 0:02:25.5]} 16. h5 {[%clk 0:02:07.7]} 16... Nxh5 {[%clk
0:02:13]} 17. Bh6 {[%clk 0:01:40.4]} 17... e6 {[%clk 0:01:58.8]} 18. fxg4 {[%clk
0:01:36.1]} 18... exd5 {[%clk 0:01:57.5]} 19. gxh5 {[%clk 0:01:34.8]} 19... g5
{[%clk 0:00:31.9]} 20. Bxg5 {[%clk 0:01:23.1]} 20... Qe8 {[%clk 0:00:28.1]} 21.
Bh6 {[%clk 0:01:01.8]} 21... Qe5 {[%clk 0:00:27.1]} 22. Bxg7 {[%clk 0:01:01.2]}
22... Kxg7 {[%clk 0:00:28]} 23. exd5 {[%clk 0:00:57.9]} 23... Rcc8 {[%clk
0:00:26.2]} 24. Rhg1+ {[%clk 0:00:54.5]} 24... Kh7 {[%clk 0:00:26.3]} 25. Bd3+
{[%clk 0:00:54.1]} 25... f5 {[%clk 0:00:26.4]} 26. Rg6 {[%clk 0:00:53.1]} 1-0

[Event "*** SCC Grand Prix: Titled Tuesday Blitz"]
[Site "Chess.com"]
[Date "2020.08.11"]
[Round "5"]
[White "vpsetter"]
[Black "IMAghasiyevKamal"]
[Result "0-1"]
[WhiteElo "2626"]
[BlackElo "2441"]
[TimeControl "180+1"]
[EndTime "10:54:16 PDT"]
[Termination "IMAghasiyevKamal won on time"]

1. c4 {[%clk 0:03:00.8]} 1... Nf6 {[%clk 0:02:57.8]} 2. Nc3 {[%clk 0:02:59.9]}
2... g6 {[%clk 0:02:55.6]} 3. g3 {[%clk 0:02:57.5]} 3... Bg7 {[%clk 0:02:55.8]}
4. Bg2 {[%clk 0:02:57.6]} 4... O-O {[%clk 0:02:56.2]} 5. Nf3 {[%clk 0:02:52.5]}
5... d6 {[%clk 0:02:56.4]} 6. O-O {[%clk 0:02:52]} 6... Nc6 {[%clk 0:02:56.5]}
7. Rb1 {[%clk 0:02:47.9]} 7... a5 {[%clk 0:02:50.2]} 8. a3 {[%clk 0:02:46.8]}
8... e5 {[%clk 0:02:50.3]} 9. d3 {[%clk 0:02:45.7]} 9... h6 {[%clk 0:02:44.1]}
10. b4 {[%clk 0:02:45.2]} 10... axb4 {[%clk 0:02:44.5]} 11. axb4 {[%clk
0:02:46.1]} 11... Be6 {[%clk 0:02:45]} 12. b5 {[%clk 0:02:45.1]} 12... Ne7
{[%clk 0:02:45]} 13. Qb3 {[%clk 0:01:41.1]} 13... Qd7 {[%clk 0:02:36.8]} 14. Nd2
{[%clk 0:01:36.1]} 14... Rab8 {[%clk 0:02:34.4]} 15. Ba3 {[%clk 0:01:23.7]}
15... b6 {[%clk 0:02:24.4]} 16. Bb2 {[%clk 0:01:04.7]} 16... Bh3 {[%clk
0:02:20.8]} 17. Nde4 {[%clk 0:01:00.8]} 17... Nh7 {[%clk 0:02:18.3]} 18. Rfd1
{[%clk 0:00:41.7]} 18... Bxg2 {[%clk 0:02:15.7]} 19. Kxg2 {[%clk 0:00:41.8]}
19... Kh8 {[%clk 0:02:11.6]} 20. Na2 {[%clk 0:00:26.1]} 20... f5 {[%clk
0:02:06.4]} 21. Nec3 {[%clk 0:00:25]} 21... f4 {[%clk 0:02:06.8]} 22. Ne4 {[%clk
0:00:24.9]} 22... Nf5 {[%clk 0:01:54.6]} 23. Qc2 {[%clk 0:00:11.3]} 23... Rf7
{[%clk 0:01:46.4]} 24. Nac3 {[%clk 0:00:09.6]} 24... Rbf8 {[%clk 0:01:46.3]} 25.
Nd5 {[%clk 0:00:04.9]} 25... g5 {[%clk 0:01:39.7]} 26. f3 {[%clk 0:00:03.3]}
26... h5 {[%clk 0:01:31.6]} 27. Rh1 {[%clk 0:00:01.8]} 27... g4 {[%clk
0:01:30.8]} 28. Rbf1 {[%clk 0:00:01.8]} 28... c6 {[%clk 0:01:28]} 29. bxc6
{[%clk 0:00:01.8]} 29... Qxc6 {[%clk 0:01:28.4]} 30. h3 {[%clk 0:00:01.6]} 30...
Qxd5 {[%clk 0:01:28]} 0-1

[Event "*** SCC Grand Prix: Titled Tuesday Blitz"]
[Site "Chess.com"]
[Date "2020.08.11"]
[Round "5"]
[White "chargemax23"]
[Black "hansen"]
[Result "0-1"]
[WhiteElo "2645"]
[BlackElo "2928"]
[TimeControl "180+1"]
[EndTime "10:54:20 PDT"]
[Termination "hansen won by resignation"]

1. c4 {[%clk 0:03:00.9]} 1... Nf6 {[%clk 0:02:31.2]} 2. Nc3 {[%clk 0:03:00.3]}
2... e5 {[%clk 0:02:29.4]} 3. Nf3 {[%clk 0:02:59.8]} 3... Nc6 {[%clk 0:02:27.1]}
4. e4 {[%clk 0:02:57.9]} 4... Bb4 {[%clk 0:02:23.8]} 5. d3 {[%clk 0:02:57.5]}
5... O-O {[%clk 0:02:23.4]} 6. a3 {[%clk 0:02:56.8]} 6... Bxc3+ {[%clk
0:02:23.8]} 7. bxc3 {[%clk 0:02:56.5]} 7... d6 {[%clk 0:02:24.3]} 8. h3 {[%clk
0:02:56.2]} 8... Nd7 {[%clk 0:02:23]} 9. Be2 {[%clk 0:02:42.6]} 9... f5 {[%clk
0:02:21.2]} 10. exf5 {[%clk 0:02:40.6]} 10... Rxf5 {[%clk 0:02:22.1]} 11. Be3
{[%clk 0:02:38]} 11... h6 {[%clk 0:02:16.8]} 12. d4 {[%clk 0:02:35.1]} 12... Qe8
{[%clk 0:02:08.4]} 13. O-O {[%clk 0:02:21.6]} 13... Rf8 {[%clk 0:01:50.7]} 14.
Rb1 {[%clk 0:02:06.3]} 14... Nf6 {[%clk 0:01:46.3]} 15. c5 {[%clk 0:01:42.7]}
15... e4 {[%clk 0:01:43]} 16. Nd2 {[%clk 0:01:41.9]} 16... d5 {[%clk 0:01:39.7]}
17. c4 {[%clk 0:01:40.9]} 17... Ne7 {[%clk 0:01:38.9]} 18. Qb3 {[%clk
0:01:32.9]} 18... c6 {[%clk 0:01:32.4]} 19. Bf4 {[%clk 0:01:26.5]} 19... Qg6
{[%clk 0:01:30]} 20. Bd6 {[%clk 0:01:20.6]} 20... Rf7 {[%clk 0:01:25.9]} 21.
Bxe7 {[%clk 0:01:04.1]} 21... Rxe7 {[%clk 0:01:24.4]} 22. cxd5 {[%clk
0:01:03.6]} 22... cxd5 {[%clk 0:01:24.7]} 23. Qe3 {[%clk 0:00:54.6]} 23... Bd7
{[%clk 0:01:19.3]} 24. Rfc1 {[%clk 0:00:46.2]} 24... Bc6 {[%clk 0:01:16.7]} 25.
Bb5 {[%clk 0:00:45.7]} 25... Rf8 {[%clk 0:01:16.4]} 26. Bxc6 {[%clk 0:00:45.3]}
26... bxc6 {[%clk 0:01:16.8]} 27. Nf1 {[%clk 0:00:31.5]} 27... Nh5 {[%clk
0:01:16.6]} 28. Ng3 {[%clk 0:00:25.5]} 28... Nf4 {[%clk 0:01:13.9]} 29. Rc3
{[%clk 0:00:23.5]} 29... Ref7 {[%clk 0:01:10.8]} 30. Rf1 {[%clk 0:00:11.5]}
30... h5 {[%clk 0:01:10.6]} 31. h4 {[%clk 0:00:05.7]} 31... Qg4 {[%clk
0:01:10.8]} 0-1